Cogmind - Beta 16.1 @@@ ROGUE MODE // 2026.04.04 @ 22:03:45 Player: Thqwib-Linux Result: Destroyed by 20-DV0(R) with Subdweller Machine Gun Performance ------------- Evolutions (0) 0 Regions Visited (2) 400 Robots Destroyed (5) 25 Value Destroyed (167) 167 Prototype IDs (0) 0 Alien Tech Used (0) 0 Bonus (0) 0 TOTAL SCORE: 592 Bonus ------- None Cogmind --------- Core Integrity 0/250 Matter 300/300 Energy 250/250 System Corruption 3% Temperature Cool (0) Movement Core (200) Ox3 Location -10/Subcaves Parts ------- > --- POWER (1) -------- Ion Engine > --- PROPULSION (2) --- (None) > --- UTILITY (2) ------ Small Storage Unit > --- WEAPON (2) ------- (None) > --- INVENTORY (8) ---- Subdweller Power Source Subdweller Monowheel Grenade Launcher Peak State ------------ > --- POWER ------------ Ion Engine > --- PROPULSION ------- Aluminum Leg Subdweller Monowheel > --- UTILITY ---------- Small Storage Unit > --- WEAPON ----------- Light Assault Rifle Subdweller Machine Gun > --- INVENTORY -------- Subdweller Power Source Grenade Launcher [Rating: 8] Favorites ----------- Power Light Ion Engine Engine Light Ion Engine Propulsion Aluminum Leg Leg Aluminum Leg Wheel Subdweller Monowheel Utility Small Storage Unit Device Seismic Detector Storage Small Storage Unit Weapon Light Assault Rifle Energy Gun Medium Laser Ballistic Gun Light Assault Rifle Build | -11 -10 -10 ------- Run | Yrd Mat Sub Slots Evolved . | . . . Power . | . . . Propulsion . | . . . Utility . | . . . Weapon . | . . . Parts Attached 5 | 1 1 3 Power 1 | . . 1 Engine 1 | . . 1 Core . | . . . Reactor . | . . . Propulsion 1 | . . 1 Treads . | . . . Leg . | . . . Wheel 1 | . . 1 Hover . | . . . Flight . | . . . Utility 1 | 1 . . Device 1 | 1 . . Storage . | . . . Processor . | . . . Hackware . | . . . Protection . | . . . Artifact . | . . . Weapon 2 | . 1 1 Energy Gun . | . . . Energy Cannon . | . . . Ballistic Gun 2 | . 1 1 Ballistic Cannon . | . . . Launcher . | . . . Special Weapon . | . . . Impact Weapon . | . . . Slashing Weapon . | . . . Piercing Weapon . | . . . Special Melee Weapon . | . . . Unidentified Prototypes . | . . . Parts Lost 8 | . . 8 Power 1 | . . 1 Propulsion 3 | . . 3 Utility 1 | . . 1 Weapon 3 | . . 3 Highest Loss Streak 4 | . . 4 To Critical Strikes . | . . . Average Backups 2 | 3 2 2 Power 1 | 1 1 1 Propulsion . | 1 . . Utility . | . . . Weapon 1 | 1 1 1 Tool/Special . | . . . Unused Backups 14 | . 7 7 Power 3 | . 1 2 Propulsion 5 | . 2 3 Utility 1 | . 1 . Weapon 5 | . 3 2 Tool/Special . | . . . Average Slot Usage (%) 92 | . 98 91 Engine 13 | . 14 13 Leg 23 | . 28 22 Wheel 4 | . . 5 Device 9 | . 14 8 Storage 14 | . 14 14 Ballistic Gun 26 | . 26 25 Peak Build Rating 8 | 7 7 8 Average Rating 7 | 6 6 7 On Entrance 6 | 6 7 7 Avg Prop Armor Cover (%) 10 | . . 10 Naked Turns . | . . . Heaviest Build 15 | 12 12 15 Greatest Support 20 | 20 20 20 Greatest Overweight (x) 1 | . . 1 Average Overweight (x) . | . . . Largest Inventory Capacity 8 | 8 8 8 Average Capacity 8 | 8 8 8 Most Carried 5 | 5 3 4 Average Carried 2 | 2 1 2 Final Capacity 8 | 8 8 8 Final Carried 3 | 2 2 3 Class Distribution -------------------- 100% | Mutant Dominant Class ---------------- Mutant | -10/Materials Mutant | -10/Subcaves Resources | -11 -10 -10 ----------- Run | Yrd Mat Sub Matter Collected 340 | 201 . 139 Remotely . | . . . Salvage Created 193 | 25 . 168 Parts 17 | 4 . 13 Haulers Intercepted . | . . . Recyclers Shooed . | . . . Parts Field Recycled . | . . . Retrieved Matter . | . . . Parts Self-Destructed 11 | . . 11 Prevented . | . . . Parts Restored . | . . . Kills | -11 -10 -10 ------- Run | Yrd Mat Sub Combat Hostiles Destroyed 4 | . . 4 Guns 4 | . . 4 Classes Destroyed 2 | 1 . 1 Tunneler 1 | 1 . . Subdweller 4 | . . 4 Best Kill Streak 1 | 1 . 1 Combat Bots Only 1 | . . 1 Max Kills in Single Turn 1 | 1 . 1 Gunslinging . | . . . Exploded . | . . . Melee . | . . . Uniques/NPCs Destroyed . | . . . Combat | -11 -10 -10 -------- Run | Yrd Mat Sub Hostile Shots Fired 48 | . 9 39 Missed 7 | . . 7 Hits 41 | . 9 32 Projectile 41 | . 9 32 AOE 3 | . . 3 Damage Taken 922 | . 135 787 Core 251 | . 74 177 Absorbed by Shields . | . . . Core Remaining (%) 100 | 100 . . Volleys Fired 31 | 1 6 24 Largest 2 | 2 2 2 Hottest 70 | 70 40 50 Shots Fired 60 | 2 12 46 Gun 60 | 2 12 46 Cannon . | . . . Launcher . | . . . Special . | . . . Kinetic 59 | 1 12 46 Thermal 1 | 1 . . Explosive . | . . . Electromagnetic . | . . . Robot Hit Streak 13 | 2 6 13 Robot Miss Streak 4 | . 1 4 Penetration Max . | . . . Secondary Targets . | . . . Shots Hit Robots 46 | 2 9 35 Core Hits 12 | 1 1 10 Critical Kills . | . . . Critical Parts Destroyed . | . . . Critical Strikes . | . . . Melee Attacks . | . . . Impact . | . . . Slashing . | . . . Piercing . | . . . Sneak Attacks . | . . . Combat Hostiles . | . . . Follow-up Attacks . | . . . Damage Inflicted 562 | 22 91 449 Guns 544 | 22 91 431 Cannons . | . . . Explosions . | . . . Melee . | . . . Ramming 18 | . . 18 Kinetic 532 | 10 91 431 Thermal 12 | 12 . . Explosive . | . . . Electromagnetic . | . . . Impact . | . . . Slashing . | . . . Piercing . | . . . Highest Corruption 3 | . . 3 Average Corruption 2 | . . 2 Corruption Purged . | . . . Corruption Blocked . | . . . Overload Shots . | . . . Overflow Damage . | . . . Projectiles . | . . . Explosions . | . . . Melee . | . . . Knockbacks 3 | . . 3 Impact 3 | . . 3 Kinetic . | . . . Secondary . | . . . Self-Inflicted Damage 7 | . . 7 Shots . | . . . Rammed 9 | . . 9 Targets Rammed 9 | . . 9 Kicked . | . . . Crushed . | . . . Highest Temperature 30 | 30 18 . Average Temperature 12 | 18 10 . Received Heat Transfer 147 | . 81 66 Siege Activations . | . . . Martial Activations . | . . . Shielding Activations . | . . . Robots Disrupted . | . . . Combat Hostiles . | . . . Robots Corrupted . | . . . Combat Hostiles . | . . . Parts Fried . | . . . Impact Corruptions . | . . . Robots Melted . | . . . Combat Hostiles . | . . . Parts Melted 1 | . . 1 Heat Transferred 37 | 37 . . Parts Sabotaged . | . . . Parts Stolen . | . . . Parts Stripped . | . . . Power Chain Reactions . | . . . Alert | -11 -10 -10 ------- Run | Yrd Mat Sub Maximum Alert Level . | . . . Low Security (%) 100 | 100 100 . Level 1 . | . . . Level 2 . | . . . Level 3 . | . . . Level 4 . | . . . Level 5 . | . . . High Security . | . . . Max Security . | . . . Peak Influence 20 | 5 20 . Initial . | . . . Average 4 | 1 5 . Influence Increases 35 | 5 30 . Destroy 0b10 Robot/NC 5 | 5 . . Lose Combat Pursuer 30 | . 30 . Influence Decreases 35 | 5 30 . Time Decay 35 | 5 30 . Squads Dispatched . | . . . Investigation . | . . . Extermination . | . . . Reinforcement . | . . . Assault . | . . . Garrison . | . . . Intercept . | . . . Searches Triggered . | . . . Construction Impeded . | . . . Haulers Reinforced . | . . . Active Scanning Responses . | . . . Cargo Convoy Interrupts . | . . . Stealth | -11 -10 -10 --------- Run | Yrd Mat Sub Distress Signals 1 | . 1 . Communications Jammed . | . . . Distress Signals . | . . . Times Spotted 9 | . 3 6 Peak Tracking Total 3 | . 3 1 Tactical Retreats 1 | . 1 . Traps | -11 -10 -10 ------- Run | Yrd Mat Sub Traps Triggered . | . . . Indirectly . | . . . Trap Hack Attempts . | . . . Triggered . | . . . Disarmed . | . . . Reprogrammed . | . . . Reused . | . . . Traps Extracted . | . . . Installed . | . . . Triggered . | . . . Machines | -11 -10 -10 ---------- Run | Yrd Mat Sub Machines Disabled . | . . . Max in Single Turn . | . . . Machines Repaired . | . . . Machines Dismantled . | . . . Machines Sabotaged . | . . . Overloaded Fab Kills . | . . . Hacking | -11 -10 -10 --------- Run | Yrd Mat Sub Machines Accessed . | . . . Terminals . | . . . Fabricators . | . . . Repair Stations . | . . . Recycling Units . | . . . Scanalyzers . | . . . Garrison Access . | . . . Total Hacks . | . . . Successful . | . . . Failed . | . . . Catastrophic . | . . . Database Lockouts . | . . . Manual . | . . . Terminals . | . . . Fabricators . | . . . Repair Stations . | . . . Recycling Units . | . . . Scanalyzers . | . . . Garrison Access . | . . . Terminal Hacks . | . . . Fabricator Hacks . | . . . Repair Station Hacks . | . . . Recycling Unit Hacks . | . . . Scanalyzer . | . . . Garrison Access Hacks . | . . . Unauthorized Hacks . | . . . Terminals . | . . . Fabricators . | . . . Repair Stations . | . . . Recycling Units . | . . . Scanalyzers . | . . . Garrison Access . | . . . Data Cores Recovered . | . . . Used . | . . . Hacking Detections . | . . . Full Trace Events . | . . . Feedback Events . | . . . Feedback Blocked . | . . . Robot Schematics Acquired . | . . . Robots Built . | . . . Authchips . | . . . Time . | . . . Total Robot Build Rating . | . . . Part Schematics Acquired . | . . . Parts Built . | . . . Authchips . | . . . Time . | . . . Total Part Build Rating . | . . . Part Studies Acquired . | . . . Parts Repaired . | . . . Time . | . . . Parts Recycled . | . . . Recycled Matter . | . . . Retrieved Matter . | . . . Retrieved Components . | . . . Parts Scanalyzed . | . . . Part Schematics Acquired . | . . . Parts Damaged . | . . . Bothacking | -11 -10 -10 ------------ Run | Yrd Mat Sub Used RIF Installer . | . . . Robots Hacked . | . . . Non-combat . | . . . Combat . | . . . Robot Hacks Applied . | . . . Relay Couplers Released . | . . . Fabnet Peak Effective % . | . . . Robots Rewired . | . . . Allies Hacked . | . . . Hacks Repelled . | . . . Allies | -11 -10 -10 -------- Run | Yrd Mat Sub Total Allies . | . . . Largest Group . | . . . Highest-Rated Group . | . . . Highest-Rated Ally . | . . . Total Orders . | . . . Ally Attacks . | . . . Total Damage . | . . . Kills . | . . . Allies Corrupted . | . . . Allies Melted . | . . . Intel | -11 -10 -10 ------- Run | Yrd Mat Sub Active Infowar (turns) 450 | 7 120 323 Seismic 450 | 7 120 323 Robot Analysis Total . | . . . Derelict Logs Recovered 1 | . . 1 Drone Launches . | . . . Drone Recoveries . | . . . Exploration | -11 -10 -10 ------------- Run | Yrd Mat Sub Turns Passed 668 | 24 120 524 Spaces Moved 445 | 15 72 358 Core . | . . . Treads . | . . . Legs 315 | 15 72 228 Wheels 130 | . . 130 Hover . | . . . Flight . | . . . Fastest Speed 110 | 120 120 110 Average Speed 117 | 120 120 116 Slowest Speed 190 | 120 120 190 Overloaded Moves . | . . . Propulsion Burnouts . | . . . Robots Hopped . | . . . Potential Cave-ins . | . . . Cave-ins Triggered . | . . . Exploration Rate (%) 9 | 2 17 9 Regions Visited 2 Branch Regions 1 Pre-discovered Areas 1 | . . 1 Known Exits Taken . | . . . Unknown Exits Taken 2 | 1 1 . Scrap Searched 1 | . . 1 Spaces Dug . | . . . Terrain Destroyed . | . . . Melee . | . . . Projectile . | . . . AOE . | . . . Terrain Rammed . | . . . Walls Destroyed . | . . . Machines Disabled . | . . . Actions | -11 -10 -10 --------- Run | Yrd Mat Sub Total 537 | 20 96 421 Wait 39 | . 15 24 Move 443 | 14 71 358 Hop . | . . . Pick Up 4 | . 1 3 Fast Attach 2 | 1 . 1 Attach 3 | . 1 2 Detach 1 | . 1 . Swap . | . . . Drop 5 | 4 1 . Fire 31 | 1 6 24 Melee . | . . . Ram 9 | . . 9 Kick . | . . . Crush . | . . . Escape Stasis . | . . . Rewire . | . . . Trap . | . . . Miscellaneous . | . . . Route ------- -11/Scrapyard -10/Materials -10/Subcaves (discovered 1 exit: [*Mat]) History --------- Turn | Location | Event 4 | -11/Scrapyard | Discovered new exit (range 1) 25 | -11/Scrapyard | Entered Materials 141 | -10/Materials | Discovered new exit (range 5) 145 | -10/Materials | Entered Subcaves 146 | -10/Subcaves | Approached by a straggling Scientist 164 | -10/Subcaves | A swath of the cavern ceiling suddenly collapsed 269 | -10/Subcaves | Discovered new exit (range 7) 274 | -10/Subcaves | Learned location of Mines (-9) 314 | -10/Subcaves | Build established: Mutant 465 | -10/Subcaves | Disturbed a concealed Subdweller 469 | -10/Subcaves | Core integrity fell below 50% 499 | -10/Subcaves | Lost 4 parts (1p1n1u1w) 623 | -10/Subcaves | Ambushed by Subdweller buried in earth 652 | -10/Subcaves | Core integrity fell below 20% 669 | -10/Subcaves | Destroyed by 20-DV0(R) with Subdweller Machine Gun Last Messages --------------- 00623_ Sub. Optics melted. 00623_ T0-MHQ(R) destroyed. 00624_ 20-DV0(R): "HIDIE!" 00626_ Sub. Machine Gun destroyed. 00630_ Lgt. Assault Rifle destroyed. 00631_ Acquired 6 matter. 00633_ Acquired Sub. Monowheel. 00657_ Slammed into 20-DV0(R). 00657_ Aluminum Leg destroyed. 00657_ System corrupted by crushing effect (+2). 00658_ Slammed into 20-DV0(R). 00664_ 20-DV0(R) knocked back. 00665_ Slammed into 20-DV0(R). 00665_ 20-DV0(R) knocked back. 00666_ Slammed into 20-DV0(R). 00666_ 20-DV0(R) knocked back. 00667_ Slammed into 20-DV0(R). 00667_ Destabilizing: System corrupted (+1). 00667_ Sub. Monowheel destroyed. 00668_ Slammed into 20-DV0(R). Map ----- +----------------------------------------------------+ | ????????????????????????????????????????????????? | | ????????????????????????????????????????????????? | | ????????????????????????????????????????????????? | | ????????????????????????????????????????????????? | | ????????????????????????????????????????????????? | | ????????????????????????????????????????????????? | | ????????????????????????????????????????????????? | | ????????????????????????????????????????????????? | | ????????????????????????????????????????????????? | | ????????????????????????????????????????????????? | | ????????????????????????????????????????????????? | | ?????????????????????????##?????????????????????? | | ???????????????????????## ###???????????????????? | | ??????????????????????## #???????????????????? | | ?????????????????????##"" #???????????????????? | | ?????????????????????#""""""#???????????????????? | | ??????????????????????# """##??????????????????? | | ??????????????????????# ## #?###??????????????? | | ??????????????????????# # ### #??????????????? | | ??????????????????????# ## #??????????????? | | ??????????????????????#" % #??????????????? | | ??????????????????????#" % #??????????????? | | ??????????????????????## ###% #??????????????? | | ???????????????????????######% #??????????????? | | ????????????????????????#%%%% #??????????????? | | ???????????????????????##@ < #??????????????? | | ???????????????????????# R #??????????????? | | ???????????????????????## # ##??????????????? | | ????????????????????????## ## #??????????????? | | ????????????????????????#"#### ##??????????????? | | ???????????????????????## #??# #??????????????? | | ??????????????????????## ##?? ##??????????????? | | ?????????????????????## ### ## # ???????????????? | | ?????????????????????#%# %#??####??????????????? | | ?????????????????????#! # ##???????????????????? | | ?????????????????????# # ## #???????????????????? | | ?????????????????????##%### #???????????????????? | | ??????????????????????##%## ##??????????????????? | | ???????????????????????## #??????????????????? | | ????????????????????????# ##??????????????????? | | ????????????????????????## #??????????????????? | | ????????????????????????# #??????????????????? | | ?????????#####??????????##&!##??????????????????? | | ?????????# ####???#####*%&##??????????????????? | | ?????????# ##### ###%& #??????????????????? | | ?????????# ## ##&&##??????????????????? | | ?????????#" ### # ! ##??????????????????? | | ?????????#" #?# #??????????????????? | | ???????### ###" ##??????????????????? | | ???##### # ##"" """ # ## #??????????????????? | +----------------------------------------------------+ Best States ------------- Heat Dissipation 25 Energy Generation 10 Energy Capacity 250 Matter Stores 300 Matter Capacity 300 Sight Range 16 Terrain Scan Density 10 Evasion (%) 55 Item Schematics ----------------- None Robot Schematics ------------------ None Fabricated ------------ Nothing Repaired ---------- Nothing Studied --------- None Alien Tech Used ----------------- None Achievements -------------- None Challenges ------------ None Game ------ Seed ThrowingRefinerySpear Manual? 0 Play Time 00:08:03 Cumulative 96.8 hours Start 2026.04.04 @ 21:57:07 End 2026.04.04 @ 22:03:45 Sessions 1 Manual Loads 0 Difficulty Rogue Special Mode None Game No. 87 Rogue 87 Adventurer 0 Explorer 0 Win Type - Total 5 Types 3/0/1/1/0/0/0/0/0/0 Lore% 54 Gallery% 46 Achievement% 41 Wizard Run 0 Options --------- Layout 2 ASCII 0 Keyboard 1 Movement Arrows Keybinds 0 Fullscreen 2 Font 24/Terminus Map View 50x44 Zoom Use 0% Tactical HUD 1 Map Filters NONE Filters NONE Steam 1 RUN: f800a112-cd17-41ce-b134-617964bfaa5f